bitfinex-derivatives/quotes_SOLF0:USTF0_20250505
["timestamp","ask_amount","ask_price","bid_price","bid_amount"]
[1746477978381,11.5985424,145.04,144.94,2.0156]
[1746477978585,11.5985424,145.04,144.94,6.1528]
[1746477978881,6.8964,145.03,144.94,6.1528]
[1746477979182,11.5985424,145.04,144.94,6.1528]
[1746477979479,6.8968,145.02,144.99,6.8978]
[1746477980181,6.8972,145.01,144.99,6.8978]
[1746477981184,11.5985424,145.04,144.96,25.06]
[1746477981384,25.06,145.03,144.94,6.1528]
[1746477981589,11.5985424,145.01,144.94,6.1528]
[1746477981786,6.8987,144.98,144.95,6.8995]
[1746477981986,6.8987,144.98,144.94,6.1528]
[1746477982287,6.8987,144.98,144.96,6.8994]
[1746477982489,6.8987,144.98,144.94,6.1528]
[1746477982787,6.8983,144.99,144.94,6.1528]
[1746477982985,6.8983,144.99,144.96,6.8991]
[1746477983186,6.8983,144.99,144.94,6.1528]
[1746477983488,6.8983,144.99,144.97,6.8989]
[1746477983690,6.8977,145.0,144.97,6.8989]
[1746477984389,6.8981,144.99,144.97,6.8989]
[1746477984783,11.5985424,145.01,144.97,6.8989]
[1746477984998,11.5985424,145.01,144.94,6.1528]
[1746477985183,36.6585424,145.03,144.94,6.1528]
[1746477985687,6.8973,145.01,144.99,6.898]
[1746477986289,6.8968,145.02,144.99,6.898]
[1746477986490,36.6585424,145.03,144.94,6.1528]
[1746477986699,25.06,145.03,144.95,11.5985424]
[1746477986990,31.9564,145.03,144.96,25.08]
[1746477987190,31.9564,145.03,145.01,6.8967]
[1746477987384,31.9564,145.03,144.96,25.08]
[1746477987385,25.06,145.03,144.96,25.08]
[1746477987587,6.8958,145.04,144.96,25.08]
[1746477987783,36.6785424,145.06,145.01,6.8968]
[1746477987984,36.6785424,145.06,144.96,25.08]
[1746477988383,36.6785424,145.06,144.98,6.8981]
[1746477989196,6.8973,145.01,144.99,6.8979]
[1746477989991,6.8969,145.02,144.99,6.8979]
[1746477990294,6.8969,145.02,144.96,25.08]
[1746477990592,6.8971,145.01,144.96,25.08]
[1746477992900,6.8971,145.01,144.98,6.8982]
[1746477993286,6.8968,145.02,144.96,25.08]
[1746477993491,11.5985424,145.05,144.99,6.8977]
[1746477994897,6.8969,145.02,144.99,6.8977]
[1746477995899,6.8972,145.01,144.99,6.8977]
[1746477996094,11.5985424,145.05,144.99,6.8977]
[1746477996399,6.8968,145.02,144.99,6.8977]
[1746477997103,6.8968,145.02,145.0,6.8975]
[1746477997399,6.8963,145.03,145.0,6.8975]
[1746477997892,6.8963,145.03,144.96,25.08]
[1746477997893,25.08,145.06,144.96,25.08]
[1746477998495,6.8954,145.05,144.96,25.08]
[1746477999001,6.8958,145.04,145.02,6.8962]
[1746477999202,25.08,145.06,144.96,25.08]
[1746477999501,25.08,145.06,145.03,6.8958]
[1746477999700,6.8953,145.05,144.96,25.08]
[1746478000016,25.08,145.06,144.99,6.898]
[1746478000196,6.8968,145.02,144.99,6.898]
[1746478000395,25.08,145.06,144.99,6.898]
[1746478000897,6.8971,145.01,144.96,25.08]
[1746478001201,25.08,145.06,144.96,25.08]
[1746478001403,6.8963,145.03,145.01,6.8968]
[1746478001802,25.08,145.06,144.96,25.08]
[1746478002100,6.8954,145.05,144.98,11.5985424]
[1746478002297,6.8954,145.05,144.99,6.0774]
[1746478002498,6.8954,145.05,145.0,25.08]
[1746478003493,25.08,145.06,145.0,25.08]
[1746478004300,6.8961,145.04,145.01,6.8968]
[1746478004501,25.08,145.06,145.01,6.8968]
[1746478005208,25.08,145.06,144.99,6.0774]
[1746478005695,25.08,145.06,145.01,6.8968]
[1746478006206,25.08,145.06,144.99,6.0774]
[1746478006900,25.08,145.09,144.99,6.0774]
[1746478007307,6.8941,145.08,145.05,6.8949]
[1746478007701,6.8941,145.08,145.05,6.8948]
[1746478007904,31.9735,145.09,145.02,25.08]
[1746478008207,25.08,145.09,145.05,6.8949]
[1746478008402,31.9735,145.09,145.02,25.08]
[1746478009105,6.8935,145.09,145.02,25.08]
[1746478009406,6.893,145.1,145.02,25.08]
[1746478009801,6.893,145.1,145.07,6.8938]
[1746478010007,6.893,145.1,145.02,25.08]
[1746478010008,6.8926,145.11,145.02,25.08]
[1746478010204,11.5985424,145.13,145.02,25.08]
[1746478010405,25.04,145.13,145.04,11.5985424]
[1746478010605,6.8921,145.12,145.05,6.2876]
[1746478010911,6.8921,145.12,145.09,6.893]
[1746478011207,25.04,145.13,145.06,25.04]
[1746478011412,25.04,145.13,145.11,6.892]
[1746478012103,31.9316,145.13,145.11,6.892]
[1746478012308,31.9316,145.13,145.1,6.8926]
[1746478012507,36.6385424,145.16,145.06,25.04]
[1746478013105,36.6385424,145.16,145.11,6.8923]
[1746478013510,36.6385424,145.16,145.06,25.04]
[1746478013702,6.8926,145.11,145.08,6.8934]
[1746478013902,6.8926,145.11,145.06,25.04]
[1746478014409,6.8926,145.11,145.09,6.8929]
[1746478014598,36.6385424,145.16,145.06,25.04]
[1746478014804,11.5985424,145.13,145.06,25.04]
[1746478015013,6.8928,145.1,145.09,1.0]
[1746478015212,11.5985424,145.1,145.02,25.04]
[1746478015509,6.8946,145.07,145.01,25.04]
[1746478015708,11.5985424,145.1,145.01,25.04]
[1746478016009,11.5985424,145.1,145.05,6.8948]
[1746478016309,11.5985424,145.1,145.01,25.04]
[1746478016510,11.5985424,145.1,145.03,6.896]
[1746478017399,11.5985424,145.1,145.04,6.8956]
[1746478017599,25.04,145.12,145.01,25.04]
[1746478018103,25.04,145.12,145.03,6.8961]
[1746478018305,25.04,145.12,145.01,25.04]
[1746478018512,6.8952,145.05,145.01,25.04]
[1746478018809,6.8952,145.05,145.02,6.8962]
[1746478019109,6.8949,145.06,145.02,6.8962]
[1746478019308,25.04,145.08,145.03,6.896]
[1746478019705,6.8945,145.07,145.04,6.8953]
[1746478019905,25.04,145.08,145.01,25.04]
[1746478020211,6.8949,145.06,145.03,6.8959]
[1746478021314,6.8944,145.07,145.04,6.8955]
[1746478021512,25.04,145.08,145.01,25.04]
[1746478021914,25.04,145.11,145.06,6.8944]
[1746478022410,6.8936,145.09,145.06,6.8944]
[1746478022616,25.04,145.11,145.06,6.8944]
[1746478022810,25.04,145.11,145.07,6.8942]
[1746478023314,25.04,145.11,145.06,6.8944]
[1746478023713,6.8938,145.08,145.01,25.04]
[1746478023914,25.04,145.11,145.01,25.04]
[1746478024515,6.8948,145.06,145.04,6.8956]
[1746478024715,6.8948,145.06,145.01,25.04]
[1746478024915,25.04,145.11,145.01,25.04]
[1746478025117,6.8955,145.05,145.02,6.8963]
[1746478026317,25.04,145.1,145.01,25.04]
[1746478026720,6.8941,145.08,145.05,6.8949]
[1746478027214,6.8942,145.07,145.05,6.8949]
[1746478027819,6.894,145.08,145.05,6.8949]
[1746478029018,25.04,145.1,145.04,6.8954]
[1746478029221,25.04,145.1,145.01,25.04]
[1746478030123,6.8941,145.08,145.05,6.8949]
[1746478031427,6.8941,145.08,145.01,25.04]
[1746478032224,6.8941,145.08,145.05,6.8948]
[1746478032725,25.04,145.1,145.06,6.8944]
[1746478033224,31.933,145.1,145.01,25.04]
[1746478033614,25.04,145.1,145.01,25.04]
[1746478033825,6.8936,145.09,145.06,6.8943]
[1746478034120,6.8936,145.09,145.01,25.04]
[1746478034325,6.8936,145.09,145.07,6.8941]
[1746478036128,25.04,145.12,145.01,25.04]
[1746478036627,6.8936,145.09,145.07,6.8941]
[1746478037838,6.8936,145.09,145.06,6.8944]
[1746478038036,6.8937,145.08,145.06,6.8944]
[1746478038438,6.8935,145.09,145.06,6.8944]
[1746478038840,25.04,145.12,145.05,6.8949]
[1746478039139,43.60928964,145.12,145.01,25.04]
[1746478039638,43.60928964,145.12,145.03,6.8959]
[1746478039841,11.60887631,145.1,145.03,6.8959]
[1746478040842,6.8948,145.06,145.03,6.8959]
[1746478041234,25.02,145.08,145.01,25.04]
[1746478041434,6.8956,145.05,145.01,25.04]
[1746478041635,25.02,145.08,145.01,25.04]
[1746478041836,25.02,145.08,144.99,4.0239]
[1746478042841,6.8959,145.04,145.01,6.8968]
[1746478043142,11.60887631,145.07,144.99,2.0564]
[1746478043443,13.57767631,145.07,144.98,25.02]
[1746478043939,13.57767631,145.07,144.95,571.24]
[1746478044440,6.897,145.02,144.98,6.8983]
[1746478045447,6.897,145.02,144.99,6.8978]
[1746478045940,6.8963,145.03,144.95,571.24]
[1746478046441,31.9159,145.04,144.95,571.24]
[1746478046640,25.02,145.04,144.95,585.0394]
[1746478046839,25.02,145.07,144.99,11.60887631]
[1746478047041,25.02,145.07,145.0,29.0423]
[1746478047343,25.02,145.1,145.0,31.192]
[1746478047942,6.8938,145.08,145.0,31.192]
[1746478048437,6.8935,145.09,145.06,6.8947]
[1746478048635,25.02,145.1,145.0,31.192]
[1746478049045,31.9132,145.1,145.07,6.8939]
[1746478049842,6.8937,145.09,145.0,31.192]
[1746478051744,6.8937,145.09,145.07,6.894]
[1746478052045,6.8937,145.09,145.06,6.8945]
[1746478052239,6.8938,145.08,145.06,6.8945]
[1746478052543,25.02,145.1,145.07,6.8941]
[1746478052744,25.02,145.1,145.0,31.192]
[1746478053144,25.02,145.1,145.07,6.894]
[1746478054947,6.8933,145.09,145.07,6.894]
[1746478058042,6.8933,145.09,145.06,6.8944]
[1746478059048,25.02,145.1,145.05,6.8949]
[1746478059347,25.02,145.1,145.0,31.192]
[1746478059549,6.895,145.06,145.03,6.8959]
[1746478059850,6.895,145.06,145.0,31.192]
[1746478060151,6.895,145.06,145.03,6.8957]
[1746478060552,6.895,145.06,145.0,31.192]
[1746478061852,6.895,145.06,145.04,6.8955]
[1746478062957,6.895,145.06,145.03,6.8959]
[1746478063355,6.8952,145.05,145.03,6.8959]
[1746478063555,25.02,145.1,145.03,6.8959]
[1746478063855,6.8951,145.06,145.03,6.8959]
[1746478064365,6.894,145.08,145.05,6.8952]
[1746478064660,6.894,145.08,145.0,31.192]
[1746478064849,6.894,145.08,145.05,6.8948]
[1746478065254,6.8942,145.07,145.05,6.8948]
[1746478066457,6.8939,145.08,145.06,6.8946]
[1746478066662,25.02,145.1,145.0,31.192]
[1746478066856,25.02,145.13,145.01,57.38009143]
[1746478067060,25.02,145.13,145.09,6.893]
[1746478067359,25.02,145.13,145.05,25.02]
[1746478067556,6.8919,145.12,145.09,6.8929]
[1746478067755,25.02,145.13,145.06,31.0979]
[1746478068155,6.8926,145.11,145.08,6.8933]
[1746478068358,6.8926,145.11,145.06,31.0979]
[1746478068661,6.892,145.12,145.1,6.8927]
[1746478069163,6.892,145.12,145.06,31.0979]
[1746478069359,6.8925,145.11,145.08,6.8935]
[1746478069961,6.8925,145.11,145.09,6.8932]
[1746478071761,6.893,145.1,145.06,31.0979]
[1746478072266,6.893,145.1,145.08,6.8937]
[1746478072665,6.893,145.1,145.06,31.0979]
[1746478072865,6.893,145.1,145.07,6.8937]
[1746478073267,6.893,145.1,145.06,31.0979]
[1746478073464,6.893,145.1,145.07,6.8938]
[1746478073667,6.8925,145.11,145.06,31.0979]
[1746478074360,6.8925,145.11,145.09,6.8932]
[1746478075767,6.8928,145.1,145.08,6.8935]
[1746478077469,6.8925,145.11,145.09,6.8933]
[1746478078370,6.8921,145.12,145.1,6.8928]
[1746478078565,6.8921,145.12,145.06,32.0979]
[1746478078966,6.8923,145.11,145.09,6.8929]
[1746478079370,6.8921,145.12,145.1,6.8928]
[1746478080570,6.8923,145.11,145.09,6.893]
[1746478080770,25.02,145.13,145.06,32.0979]
[1746478081160,6.8934,145.09,145.06,32.0979]
[1746478081365,36.61827602,145.13,145.06,26.02]
[1746478081564,36.61827602,145.13,145.06,32.9143]
[1746478081764,36.61827602,145.13,145.06,7.8943]
[1746478081972,36.61827602,145.13,145.06,1.0]
[1746478082271,50.40117602,145.13,145.06,1.0]
[1746478082770,6.8942,145.07,145.06,1.0]
[1746478084566,6.894,145.08,145.06,1.0]
[1746478085069,6.894,145.08,145.06,7.8945]
[1746478085572,50.40117602,145.13,145.06,7.8945]
[1746478086370,6.8937,145.09,145.06,7.8945]
[1746478086567,36.61827602,145.13,145.06,1.0]
[1746478086970,6.893,145.1,145.06,1.0]
[1746478087166,36.61827602,145.13,145.06,1.0]
[1746478087365,25.02,145.13,145.06,1.0]
[1746478087566,6.8921,145.12,145.09,6.8928]
[1746478088068,6.8921,145.12,145.06,1.0]
[1746478088069,25.02,145.13,145.07,6.8939]
[1746478088268,36.61827602,145.13,145.06,1.0]
[1746478088567,6.8938,145.08,145.06,1.0]
[1746478088774,36.61827602,145.13,145.06,1.0]
[1746478089067,6.8942,145.07,145.06,1.0]
[1746478089467,38.60967602,145.13,145.06,1.0]
[1746478089670,6.894,145.08,145.06,7.8947]
[1746478091576,6.894,145.08,145.06,1.0]
[1746478091771,6.8942,145.07,145.06,1.0]
[1746478092075,38.60967602,145.13,145.06,7.8946]
[1746478092283,6.8937,145.09,145.06,1.0]
[1746478092569,38.60967602,145.13,145.06,1.0]
[1746478093077,38.60967602,145.13,145.07,6.8942]
[1746478093263,27.0114,145.13,145.07,6.8942]
[1746478093574,27.0114,145.13,145.06,1.0]
[1746478093875,6.8936,145.09,145.06,7.8944]
[1746478094065,6.8936,145.09,145.06,1.0]
[1746478094374,27.0114,145.13,145.06,1.0]
[1746478094375,25.02,145.13,145.06,1.0]
[1746478094576,6.8923,145.12,145.09,6.893]
[1746478094771,25.02,145.13,145.06,1.0]
[1746478095271,25.02,145.13,145.07,6.8942]
[1746478095472,25.02,145.13,145.06,1.0]
[1746478095776,6.8935,145.09,145.06,7.8943]
[1746478096676,6.8935,145.09,145.07,6.8942]
[1746478099077,6.8929,145.1,145.08,6.8937]
[1746478101573,25.02,145.13,145.06,1.0]
[1746478101774,25.02,145.13,145.07,26.974]
[1746478101974,6.8906,145.15,145.13,6.8913]
[1746478102479,24.98,145.16,145.08,2.0329]
[1746478102773,6.8909,145.14,145.08,2.0329]
[1746478103075,6.8909,145.14,145.12,6.8916]
[1746478103777,6.8907,145.15,145.12,6.8916]
[1746478103976,6.8907,145.15,145.13,6.8912]
[1746478104275,31.8702,145.16,145.13,6.8912]
[1746478104777,31.8702,145.16,145.14,6.8907]
[1746478105478,6.8905,145.15,145.13,6.8911]
[1746478106180,31.8701,145.16,145.13,6.8911]
[1746478106379,31.8701,145.16,145.14,6.8908]
[1746478106876,6.8905,145.15,145.13,6.8912]
[1746478107074,24.98,145.16,145.13,6.8912]
[1746478107374,24.98,145.16,145.08,2.0329]
[1746478107375,24.98,145.16,145.15,6.8904]
[1746478107581,6.8891,145.18,145.15,6.8904]
[1746478108080,43.44687602,145.19,145.11,24.96]
[1746478108482,36.55827602,145.19,145.11,24.96]
[1746478108680,24.96,145.19,145.11,24.96]
[1746478109478,31.8488,145.19,145.16,6.8899]
[1746478109676,24.96,145.19,145.11,24.96]
[1746478110684,6.8891,145.18,145.15,6.8901]
[1746478110882,40.64417602,145.22,145.11,24.96]
[1746478111683,6.8897,145.17,145.14,6.8905]
[1746478111880,6.8897,145.17,145.11,24.96]
[1746478112184,6.8897,145.17,145.14,6.8904]
[1746478112384,6.8897,145.17,145.11,24.96]
[1746478113379,6.8897,145.17,145.14,6.8905]
[1746478114583,6.8897,145.17,145.15,6.8904]
[1746478115591,6.8892,145.18,145.15,6.8904]
[1746478117295,6.8895,145.17,145.15,6.8904]
[1746478119195,6.8892,145.18,145.15,6.8904]
[1746478120091,6.8887,145.19,145.13,4.1747]
[1746478120997,24.96,145.22,145.13,4.1747]
[1746478121395,24.96,145.25,145.15,11.59827602]
[1746478121594,6.8864,145.24,145.16,24.96]
[1746478122099,31.8459,145.25,145.23,6.8866]
[1746478122395,1.9867,145.27,145.2,24.96]
[1746478122600,6.8866,145.23,145.21,6.8873]
[1746478122997,1.9867,145.27,145.2,24.96]
[1746478123292,6.8864,145.24,145.21,6.8873]
[1746478123898,6.8867,145.23,145.21,6.8873]
[1746478124199,1.9867,145.27,145.21,6.8873]
[1746478125301,6.8865,145.24,145.22,6.887]
[1746478125502,6.8865,145.24,145.2,24.96]
[1746478125702,1.9867,145.27,145.2,24.96]
[1746478126002,6.8864,145.24,145.21,6.8872]
[1746478128396,6.8867,145.23,145.21,6.8872]
[1746478128591,1.9867,145.27,145.2,24.96]
[1746478128796,6.8859,145.25,145.22,6.8871]
[1746478129504,6.8862,145.24,145.22,6.8871]
[1746478129706,1.9867,145.27,145.22,6.8871]
[1746478129906,6.8861,145.25,145.22,6.8871]
[1746478130299,38.65577602,145.28,145.2,24.96]
[1746478130300,24.96,145.28,145.2,24.96]
[1746478130504,6.8853,145.26,145.2,24.96]
[1746478131007,6.8853,145.26,145.23,6.8862]
[1746478131503,6.8849,145.27,145.2,24.96]
[1746478132403,6.8845,145.28,145.2,24.96]
[1746478132804,6.8845,145.28,145.26,6.8852]
[1746478133006,19.89914178,145.29,145.26,6.8852]
[1746478134807,6.8843,145.28,145.26,6.8852]
[1746478135106,13.01514178,145.29,145.21,11.59827602]
[1746478135307,19.89934178,145.29,145.21,11.59827602]
[1746478135505,13.01514178,145.29,145.26,6.885]
[1746478136308,13.01514178,145.29,145.25,6.8854]
[1746478136504,13.01514178,145.29,145.24,24.92]
[1746478136706,13.01514178,145.29,145.21,24.92]
[1746478136905,6.8849,145.27,145.24,6.8859]
[1746478137408,6.8853,145.26,145.24,6.8859]
[1746478138807,6.885,145.27,145.24,6.8859]
[1746478140709,6.8852,145.26,145.24,6.8859]
[1746478141112,27.0195,145.31,145.24,6.8859]
[1746478141306,6.8849,145.27,145.25,6.8856]
[1746478141502,27.0195,145.31,145.22,1.0]
[1746478142007,6.885,145.27,145.25,6.8856]
[1746478143008,6.8845,145.28,145.25,6.8856]
[1746478143410,6.885,145.27,145.25,6.8856]
[1746478143803,27.0195,145.31,145.24,6.8859]
[1746478144512,6.8849,145.27,145.25,6.8856]
[1746478144714,11.59827602,145.3,145.22,1.0]
[1746478145316,6.8855,145.26,145.23,6.8863]
[1746478145914,11.59827602,145.3,145.22,1.0]
[1746478146109,6.8844,145.28,145.26,6.885]
[1746478146312,27.0195,145.31,145.22,1.0]
[1746478146713,6.8841,145.29,145.22,1.0]
[1746478147612,3.15220584,145.35,145.24,11.59827602]
[1746478147911,24.92,145.34,145.25,24.92]
[1746478148111,24.92,145.34,145.29,6.8835]
[1746478148112,6.8825,145.32,145.29,6.8835]
[1746478148308,6.8825,145.32,145.25,26.9013]
[1746478148510,6.8825,145.32,145.25,30.9466]
[1746478148707,6.8825,145.32,145.29,6.8833]
[1746478149315,6.8825,145.32,145.3,6.8832]
[1746478149613,24.92,145.34,145.25,30.9466]
[1746478149814,36.51827602,145.34,145.28,6.884]
[1746478150714,36.51827602,145.34,145.27,6.8845]
[1746478151216,36.51827602,145.34,145.28,6.8841]
[1746478151714,6.8836,145.3,145.27,6.8845]
[1746478151914,36.51827602,145.34,145.27,6.8845]
[1746478152115,36.51827602,145.34,145.25,24.92]
[1746478152315,6.8849,145.27,145.25,31.8057]
[1746478152511,24.92,145.3,145.22,25.92]
[1746478152910,6.8852,145.27,145.24,6.8859]
[1746478153107,24.92,145.3,145.24,6.8859]
[1746478154012,6.8841,145.29,145.24,6.8859]
[1746478154217,24.92,145.3,145.25,6.8856]
[1746478154717,6.8847,145.27,145.24,6.8859]
[1746478155615,6.8845,145.28,145.25,6.8856]
[1746478156316,6.8845,145.28,145.26,6.8852]
[1746478156719,6.8845,145.28,145.22,25.92]
[1746478156918,6.8845,145.28,145.25,6.8854]
[1746478157420,6.8845,145.28,145.26,6.8851]
[1746478157721,6.884,145.29,145.26,6.8851]
[1746478158115,24.92,145.3,145.27,6.8844]
[1746478158312,24.92,145.3,145.22,25.92]
[1746478158519,24.92,145.33,145.22,25.92]
[1746478158817,6.8834,145.3,145.27,6.8843]
[1746478159123,24.92,145.33,145.22,25.92]
[1746478159317,24.92,145.33,145.23,11.59827602]
[1746478160021,6.8829,145.31,145.29,6.8835]
[1746478160521,6.8827,145.32,145.29,6.8835]
[1746478160725,6.8827,145.32,145.3,6.8831]
[1746478160922,6.8827,145.32,145.26,24.92]
[1746478161422,6.8827,145.32,145.29,6.8836]
[1746478161726,31.802,145.33,145.26,24.92]
[1746478161926,29.0272,145.36,145.31,6.8827]
[1746478162222,6.8813,145.35,145.27,5.9393]
[1746478162624,24.88,145.36,145.27,5.9393]
[1746478162824,31.7608,145.36,145.27,5.9393]
[1746478163129,31.7608,145.36,145.33,6.8817]
[1746478163324,6.881,145.35,145.3,24.88]
[1746478163624,6.881,145.35,145.32,6.8821]
[1746478164127,6.881,145.35,145.3,24.88]
[1746478164128,24.88,145.36,145.3,24.88]
[1746478164627,24.88,145.36,145.27,30.8193]
[1746478164923,24.88,145.36,145.3,6.8832]
[1746478165122,24.88,145.36,145.27,30.8193]
[1746478165324,6.8826,145.32,145.29,6.8834]
[1746478165718,24.88,145.36,145.29,6.8834]
[1746478166329,24.88,145.36,145.3,6.8832]
[1746478166528,6.8822,145.33,145.3,6.8832]
[1746478167425,6.8822,145.33,145.31,6.8826]
[1746478167628,6.8822,145.33,145.27,30.8193]
[1746478168132,6.8822,145.33,145.31,6.8826]
[1746478168428,6.8816,145.34,145.31,6.8826]
[1746478170432,6.8819,145.33,145.31,6.8826]
[1746478170633,24.88,145.36,145.32,6.8823]
[1746478171029,6.8817,145.34,145.32,6.8823]
[1746478172635,6.8817,145.34,145.31,6.8826]
[1746478172833,6.8817,145.34,145.27,30.8193]
[1746478173228,6.8811,145.35,145.33,6.8819]
[1746478173426,24.88,145.36,145.22,25.88]
[1746478173626,11.59827602,145.33,145.22,25.88]
[1746478173833,6.8846,145.28,145.22,25.88]
[1746478174034,24.88,145.32,145.22,25.88]
[1746478174431,24.88,145.32,145.22,32.767]
[1746478174636,24.88,145.32,145.22,25.88]
[1746478174839,6.8855,145.26,145.22,25.88]
[1746478175228,24.88,145.28,145.22,1.0]
[1746478175428,6.8866,145.23,145.22,1.0]
[1746478177836,6.8892,145.18,145.16,24.88]
[1746478178129,36.47827602,145.24,145.16,24.88]
[1746478178939,6.8895,145.17,145.16,24.88]
[1746478180738,6.8904,145.15,145.14,1.977]
[1746478181333,6.8909,145.14,145.13,168.0043562]
[1746478181734,6.8909,145.14,145.13,24.88]
[1746478181936,11.59827602,145.18,145.1,24.9]
[1746478182635,6.8923,145.11,145.1,24.9]
[1746478184737,6.8935,145.09,145.07,29.045]
[1746478185039,24.9,145.16,145.07,29.045]
[1746478185241,6.8937,145.08,145.07,27.0546]
[1746478186142,6.8934,145.09,145.07,27.0546]
[1746478187444,6.893,145.1,145.07,27.0546]
[1746478188746,6.893,145.1,145.07,33.9488]
[1746478189145,6.893,145.1,145.07,27.0546]
[1746478191547,6.893,145.1,145.07,33.9488]
[1746478192949,2.0986,145.15,145.07,27.0546]
[1746478193549,6.893,145.1,145.07,27.0546]
[1746478194650,6.893,145.1,145.07,33.9485]
[1746478200046,6.8923,145.12,145.07,27.0546]
[1746478200243,24.9,145.16,145.07,29.0329]
[1746478200751,24.9,145.16,145.07,27.0546]
[1746478201051,26.9167,145.16,145.07,24.9]
[1746478201955,26.9167,145.16,145.08,6.8937]
[1746478202157,26.9167,145.16,145.07,24.9]
[1746478202352,18.55549063,145.15,145.07,24.9]
[1746478202655,18.55549063,145.15,145.07,25.9]
[1746478202954,18.55549063,145.15,145.07,32.794]
[1746478203455,6.893,145.1,145.07,32.794]
[1746478203855,18.55549063,145.15,145.07,32.794]
[1746478204055,18.55549063,145.15,145.07,25.9]
[1746478204256,6.8932,145.1,145.07,25.9]
[1746478204856,6.8934,145.09,145.07,25.9]
[1746478205057,6.8934,145.09,145.07,32.7942]
[1746478205358,18.55549063,145.15,145.07,32.7942]
[1746478205549,6.8932,145.1,145.07,32.7942]
[1746478206256,6.8933,145.09,145.07,32.7942]
[1746478207052,6.893,145.1,145.07,32.7942]
[1746478207356,11.60291917,145.13,145.08,6.8937]
[1746478207557,6.8926,145.11,145.08,6.8937]
[1746478211158,6.8926,145.11,145.09,6.8932]
[1746478211462,6.8926,145.11,145.07,25.9]
[1746478211763,36.50291917,145.16,145.1,6.8925]
[1746478212153,36.50291917,145.16,145.07,34.7941]
[1746478212154,6.893,145.1,145.07,34.7941]
[1746478212860,6.893,145.1,145.08,6.8937]
[1746478213059,11.60291917,145.13,145.07,27.9001]
[1746478213258,24.9,145.16,145.07,27.9001]
[1746478213458,24.9,145.16,145.07,39.50301917]
[1746478213660,6.8902,145.16,145.13,6.891]
[1746478213959,11.60291917,145.18,145.11,24.9]
[1746478214258,11.60291917,145.18,145.14,6.8908]
[1746478214660,6.8898,145.17,145.14,6.8908]
[1746478214960,11.60291917,145.18,145.14,6.8908]
[1746478215158,6.8898,145.17,145.14,6.8908]
[1746478215363,11.60291917,145.18,145.14,6.8908]
[1746478215555,11.60291917,145.18,145.15,6.8903]
[1746478216662,18.49211917,145.18,145.16,6.8899]
[1746478216963,18.49211917,145.18,145.12,4.1325]
[1746478216964,24.9,145.22,145.12,4.1325]
[1746478217165,6.8879,145.21,145.18,6.8887]
[1746478217366,24.9,145.22,145.18,6.8887]
[1746478217862,6.8878,145.21,145.18,6.8887]
[1746478218061,6.8878,145.21,145.19,6.8885]
[1746478218267,31.7873,145.22,145.19,6.8885]
[1746478218458,24.9,145.22,145.15,24.9]
[1746478218866,6.8876,145.21,145.18,6.8887]
[1746478219369,31.7873,145.22,145.19,6.8883]